fUST/lending_fUST_20250609
["ID","MTS","AMOUNT","RATE_DAILY","PERIOD"]
[365039600,1749420652395,-440.0,0.00022739,4]
[365039601,1749420652405,-294.221276,0.00022739,7]
[365039602,1749420652415,-440.0,0.00022739,4]
[365039603,1749420652425,-440.0,0.00022739,4]
[365039604,1749420652436,-151.0,0.00022739,7]
[365039605,1749420652448,-1415.17,0.00022739,4]
[365039606,1749420652458,-344.52,0.00022739,4]
[365039607,1749420652468,-440.0,0.00022739,4]
[365039608,1749420652479,-485.45,0.00022739,4]
[365039609,1749420652490,-440.0,0.00022739,4]
[365039610,1749420652500,-2429.661368,0.00022739,2]
[365039611,1749420652510,-2568.46,0.00022739,4]
[365039612,1749420652521,-2429.661368,0.00022739,2]
[365039613,1749420652531,-1143.02,0.00022739,4]
[365039614,1749420652540,-440.0,0.00022739,4]
[365039615,1749420652551,-1508.21,0.00022739,4]
[365039616,1749420652561,-298.834266,0.00022739,7]
[365039617,1749420652571,-502.97,0.00022739,4]
[365039618,1749420652580,-1346.99,0.00022739,4]
[365039619,1749420652590,-440.0,0.00022739,4]
[365039620,1749420652600,-1720.85,0.00022739,4]
[365039621,1749420652610,-2696.79,0.00022739,4]
[365039622,1749420652620,-634.864202,0.00022739,7]
[365039623,1749420652631,-1719.84,0.00022739,4]
[365039624,1749420652641,-634.864202,0.00022739,7]
[365039625,1749420652651,-440.0,0.00022739,4]
[365039626,1749420652661,-440.0,0.00022739,4]
[365039627,1749420652671,-440.0,0.00022739,4]
[365039628,1749420652682,-2364.37,0.00022739,4]
[365039629,1749420652692,-562.52,0.00022739,4]
[365039630,1749420652702,-1138.16,0.00022739,4]
[365039631,1749420652712,-2603.17,0.00022739,4]
[365039632,1749420652722,-2952.52,0.00022739,4]
[365039633,1749420652731,-440.0,0.00022739,4]
[365039634,1749420652742,-769.0,0.00022739,4]
[365039635,1749420652751,-440.0,0.00022739,4]
[365039636,1749420652761,-8000.0,0.00022742,3]
[365039637,1749420652771,-912.15993345,0.0002277,3]
[365039638,1749420652781,-587.0,0.0002277,2]
[365039639,1749420652791,-587.0,0.00022775,2]
[365039640,1749420652801,-4145.0600695,0.00022831,8]
[365039641,1749420652812,-1703.156451,0.00022834,3]
[365039642,1749420652822,-2000.0,0.00022891,2]
[365039643,1749420652831,-480.129086,0.00022932,2]
[365039644,1749420652841,-1200.0,0.00022957,2]
[365039645,1749420652851,-7000.0,0.00022991,3]
[365039646,1749420652861,-5000.0,0.00023,2]
[365039647,1749420652870,-151.0,0.00023,8]
[365039648,1749420652879,-160.0,0.00023,3]
[365039649,1749420652889,-160.0,0.00023,3]
[365039650,1749420652900,-423.98131849,0.00023,3]
[365039651,1749420652910,-4145.0600695,0.00023003,8]
[365039652,1749420652919,-496.4,0.00023013,2]
[365039653,1749420652929,-468.93822417,0.00023013,2]
[365039654,1749420652939,-151.0,0.00023013,7]
[365039655,1749420652948,-151.0,0.00023013,7]
[365039656,1749420652958,-151.0,0.00023013,7]
[365039657,1749420652968,-151.0,0.00023013,7]
[365039658,1749420652978,-440.0,0.00023013,4]
[365039659,1749420652987,-1467.97,0.00023013,4]
[365039660,1749420653001,-440.0,0.00023013,4]
[365039661,1749420653010,-1143.64,0.00023013,4]
[365039662,1749420653021,-151.0,0.00023013,7]
[365039663,1749420653032,-440.0,0.00023013,4]
[365039664,1749420653041,-440.0,0.00023013,4]
[365039665,1749420653052,-440.0,0.00023013,4]
[365039666,1749420653062,-1415.17,0.00023013,4]
[365039667,1749420653072,-151.0,0.00023013,7]
[365039668,1749420653082,-551.9,0.00023013,4]
[365039669,1749420653092,-485.45,0.00023013,4]
[365039670,1749420653102,-440.0,0.00023013,4]
[365039671,1749420653113,-2568.46,0.00023013,4]
[365039672,1749420653122,-1143.02,0.00023013,4]
[365039673,1749420653132,-440.0,0.00023013,4]
[365039674,1749420653142,-1508.21,0.00023013,4]
[365039675,1749420653153,-381.183681,0.00023013,7]
[365039676,1749420653163,-381.183681,0.00023013,7]
[365039677,1749420653174,-502.97,0.00023013,4]
[365039678,1749420653184,-1346.99,0.00023013,4]
[365039679,1749420653194,-440.0,0.00023013,4]
[365039680,1749420653205,-1720.85,0.00023013,4]
[365039681,1749420653215,-2696.79,0.00023013,4]
[365039682,1749420653225,-1719.84,0.00023013,4]
[365039683,1749420653235,-440.0,0.00023013,4]
[365039684,1749420653248,-440.0,0.00023013,4]
[365039685,1749420653258,-151.0,0.00023013,7]
[365039686,1749420653267,-440.0,0.00023013,4]
[365039687,1749420653277,-2364.37,0.00023013,4]
[365039688,1749420653287,-562.52,0.00023013,4]
[365039689,1749420653297,-1138.16,0.00023013,4]
[365039690,1749420653307,-2603.17,0.00023013,4]
[365039691,1749420653317,-2952.52,0.00023013,4]
[365039692,1749420653326,-440.0,0.00023013,4]
[365039693,1749420653335,-769.0,0.00023013,4]
[365039694,1749420653345,-440.0,0.00023013,4]
[365039695,1749420653354,-3000.0,0.00023064,2]
[365039696,1749420653364,-2500.0,0.00023064,2]
[365039697,1749420653374,-2500.0,0.00023064,2]
[365039698,1749420653383,-2034.76,0.00023071,2]
[365039699,1749420653392,-71436.77,0.000231,7]
[365039700,1749420653401,-1639.36,0.000231,7]
[365039701,1749420653411,-195.707151,0.000231,7]
[365039702,1749420653420,-151.0,0.000231,7]
[365039703,1749420653430,-151.0,0.000231,7]
[365039704,1749420653440,-151.0,0.000231,7]
[365039705,1749420653453,-2429.661368,0.000231,2]
[365039706,1749420653463,-2429.661368,0.000231,2]
[365039707,1749420653473,-634.864202,0.000231,7]
[365039709,1749420653484,-634.864202,0.000231,7]
[365039711,1749420653496,-500.0,0.00023173,2]
[365039713,1749420653506,-150.0,0.00023173,2]
[365039715,1749420653516,-4145.0600695,0.00023176,8]
[365039716,1749420653526,-151.0,0.00023176,7]
[365039718,1749420653537,-296.039415,0.00023176,7]
[365039720,1749420653546,-151.0,0.00023176,7]
[365039722,1749420653556,-6000.0,0.00023188,3]
[365039723,1749420653565,-150.0,0.00023189,2]
[365039724,1749420653575,-238.354,0.00023189,2]
[365039726,1749420653584,-250.0,0.00023189,2]
[365039727,1749420653593,-258.14,0.00023189,2]
[365039728,1749420653603,-214.875,0.00023189,2]
[365039729,1749420653613,-963.0,0.00023189,2]
[365039730,1749420653623,-652.0,0.00023189,2]
[365039731,1749420653633,-2159.0,0.00023189,2]
[365039732,1749420653643,-121411.59591787,0.00023195,2]
[365039733,1749420653653,-151.0,0.00023195,7]
[365039734,1749420653662,-195.707151,0.00023195,7]
[365039735,1749420653671,-151.0,0.00023195,7]
[365039736,1749420653681,-151.0,0.00023195,7]
[365039737,1749420653691,-151.0,0.00023195,7]
[365039738,1749420653701,-151.0,0.00023195,7]
[365039739,1749420653711,-151.0,0.00023195,7]
[365039740,1749420653722,-151.0,0.00023195,7]
[365039741,1749420653732,-151.0,0.00023195,7]
[365039742,1749420653743,-151.0,0.00023195,7]
[365039743,1749420653753,-2429.661368,0.00023195,2]
[365039744,1749420653762,-2429.661368,0.00023195,2]
[365039745,1749420653773,-381.183681,0.00023195,7]
[365039746,1749420653783,-381.183681,0.00023195,7]
[365039747,1749420653793,-634.864202,0.00023195,7]
[365039748,1749420653802,-634.864202,0.00023195,7]
[365039749,1749420653812,-151.0,0.00023195,7]
[365039750,1749420653822,-401.64,0.000232,7]
[365039751,1749420653832,-6000.0,0.00023248,3]
[365039752,1749420653841,-151.0,0.00023287,7]
[365039753,1749420653852,-496.4,0.00023287,2]
[365039754,1749420653863,-440.0,0.00023287,4]
[365039755,1749420653872,-1467.97,0.00023287,4]
[365039756,1749420653882,-440.0,0.00023287,4]
[365039757,1749420653891,-1143.64,0.00023287,4]
[365039758,1749420653901,-440.0,0.00023287,4]
[365039759,1749420653911,-440.0,0.00023287,4]
[365039760,1749420654016,-440.0,0.00023287,4]
[365039761,1749420654027,-1415.17,0.00023287,4]
[365039762,1749420654037,-485.45,0.00023287,4]
[365039763,1749420654047,-440.0,0.00023287,4]
[365039764,1749420654057,-2568.46,0.00023287,4]
[365039765,1749420654067,-1143.02,0.00023287,4]
[365039766,1749420654077,-440.0,0.00023287,4]
[365039767,1749420654087,-1508.21,0.00023287,4]
[365039768,1749420654097,-502.97,0.00023287,4]
[365039769,1749420654107,-1346.99,0.00023287,4]
[365039770,1749420654118,-440.0,0.00023287,4]
[365039771,1749420654128,-1720.85,0.00023287,4]
[365039772,1749420654138,-2696.79,0.00023287,4]
[365039773,1749420654148,-1719.84,0.00023287,4]
[365039774,1749420654157,-440.0,0.00023287,4]
[365039775,1749420654167,-440.0,0.00023287,4]
[365039776,1749420654177,-440.0,0.00023287,4]
[365039777,1749420654187,-2364.37,0.00023287,4]
[365039778,1749420654197,-562.52,0.00023287,4]
[365039779,1749420654207,-1138.16,0.00023287,4]
[365039780,1749420654217,-2603.17,0.00023287,4]
[365039781,1749420654226,-2952.52,0.00023287,4]
[365039782,1749420654236,-440.0,0.00023287,4]
[365039783,1749420654248,-769.0,0.00023287,4]
[365039784,1749420654258,-440.0,0.00023287,4]
[365039785,1749420654268,-176.12414563,0.0002329,4]
[365039786,1749420654278,-176.12414563,0.0002329,4]
[365039787,1749420654287,-176.12414563,0.0002329,4]
[365039788,1749420654297,-176.12414563,0.0002329,4]
[365039789,1749420654306,-140.64254619,0.0002329,4]
[365039790,1749420654787,-440.0,0.00019178,2]
[365039791,1749420654798,-390.0,0.00019178,2]
[365039792,1749420654808,-440.0,0.00019452,2]
[365039793,1749420654818,-400.0,0.00019726,2]
[365039794,1749420654828,-151.0,0.00020273,2]
[365039795,1749420654840,-167.2222613,0.000213,2]
[365039796,1749420654851,-405.0,0.00022655,2]
[365039797,1749420654861,-1808.69624334,0.00023,2]
[365039798,1749420654872,-35.48159944,0.0002329,4]
[365039799,1749420654882,-176.12414563,0.0002329,4]
[365039800,1749420654892,-176.12414563,0.0002329,4]
[365039801,1749420654902,-176.12414563,0.0002329,4]
[365039802,1749420654911,-176.12414563,0.0002329,4]
[365039803,1749420654921,-176.12414563,0.0002329,4]
[365039804,1749420654931,-176.12414563,0.0002329,4]
[365039805,1749420654940,-176.12414563,0.0002329,4]
[365039806,1749420654950,-176.12414563,0.0002329,4]
[365039807,1749420654959,-176.12414563,0.0002329,4]
[365039808,1749420654969,-176.12414563,0.0002329,4]
[365039809,1749420654979,-176.12414563,0.0002329,4]
[365039810,1749420654989,-176.12414563,0.0002329,4]
[365039811,1749420654999,-176.12414563,0.0002329,4]
[365039812,1749420655009,-176.12414563,0.0002329,4]
[365039813,1749420655018,-176.12,0.0002329,4]
[365039814,1749420655028,-410.95633981,0.0002329,4]
[365039815,1749420655038,-410.95633981,0.0002329,4]
[365039816,1749420655047,-410.95633981,0.0002329,4]
[365039817,1749420655057,-410.95633981,0.0002329,4]
[365039818,1749420655067,-410.95633981,0.0002329,4]
[365039819,1749420655077,-410.95633981,0.0002329,4]
[365039820,1749420655087,-410.95633981,0.0002329,4]
[365039821,1749420655097,-410.95633981,0.0002329,4]
[365039822,1749420655107,-410.95633981,0.0002329,4]
[365039823,1749420655117,-410.95633981,0.0002329,4]
[365039824,1749420655128,-410.95633981,0.0002329,4]
[365039825,1749420655138,-410.95633981,0.0002329,4]
[365039826,1749420655147,-410.95633981,0.0002329,4]
[365039827,1749420655156,-410.95633981,0.0002329,4]
[365039828,1749420655166,-410.95633981,0.0002329,4]
[365039829,1749420655175,-410.95633981,0.0002329,4]
[365039830,1749420655185,-410.95633981,0.0002329,4]
[365039831,1749420655195,-410.95633981,0.0002329,4]
[365039832,1749420655204,-410.95633981,0.0002329,4]
[365039833,1749420655214,-410.95,0.0002329,4]
[365039834,1749420655224,-162.40910998,0.0002329,4]
[365039835,1749420655234,-162.40910998,0.0002329,4]
[365039836,1749420655245,-162.40910998,0.0002329,4]
[365039837,1749420655254,-162.40910998,0.0002329,4]
[365039838,1749420655264,-162.40910998,0.0002329,4]
[365039839,1749420655274,-162.40910998,0.0002329,4]
[365039840,1749420655284,-162.40910998,0.0002329,4]
[365039841,1749420655294,-162.40910998,0.0002329,4]
[365039842,1749420655304,-162.40910998,0.0002329,4]
[365039843,1749420655314,-162.40910998,0.0002329,4]
[365039844,1749420655324,-162.40910998,0.0002329,4]
[365039845,1749420655334,-6.59954988,0.0002329,4]
[365039846,1749420655347,-155.80045012,0.0002329,4]
[365039847,1749420655357,-227.37275397,0.0002329,4]
[365039848,1749420655367,-227.37275397,0.0002329,4]
[365039849,1749420655377,-227.37275397,0.0002329,4]
[365039850,1749420655387,-227.37275397,0.0002329,4]
[365039851,1749420655397,-227.37275397,0.0002329,4]
[365039852,1749420655407,-227.37275397,0.0002329,4]
[365039853,1749420655417,-227.37275397,0.0002329,4]
[365039854,1749420655427,-227.37275397,0.0002329,4]
[365039855,1749420655437,-227.37275397,0.0002329,4]
[365039856,1749420655448,-227.37275397,0.0002329,4]
[365039857,1749420655458,-227.37275397,0.0002329,4]
[365039858,1749420655468,-227.37275397,0.0002329,4]
[365039859,1749420655478,-227.37275397,0.0002329,4]
[365039860,1749420655488,-227.37275397,0.0002329,4]
[365039861,1749420655498,-227.37275397,0.0002329,4]
[365039862,1749420655508,-227.37275397,0.0002329,4]
[365039863,1749420655518,-227.37275397,0.0002329,4]
[365039864,1749420655529,-227.37275397,0.0002329,4]
[365039865,1749420655539,-227.37275397,0.0002329,4]
[365039866,1749420655549,-227.37,0.0002329,4]
[365039867,1749420655558,-286.91534437,0.0002329,4]
[365039868,1749420655569,-286.91534437,0.0002329,4]
[365039869,1749420655579,-286.91534437,0.0002329,4]
[365039870,1749420655683,-286.91534437,0.0002329,4]
[365039871,1749420655697,-286.91534437,0.0002329,4]
[365039872,1749420655707,-286.91534437,0.0002329,4]
[365039873,1749420655717,-286.91534437,0.0002329,4]
[365039874,1749420655728,-286.91534437,0.0002329,4]
[365039875,1749420655738,-286.91534437,0.0002329,4]
[365039876,1749420655749,-286.91534437,0.0002329,4]
[365039877,1749420655761,-286.91534437,0.0002329,4]
[365039878,1749420655771,-286.91534437,0.0002329,4]
[365039879,1749420655780,-286.91534437,0.0002329,4]
[365039880,1749420655790,-286.91534437,0.0002329,4]
[365039881,1749420655802,-286.91534437,0.0002329,4]
[365039882,1749420655816,-286.91534437,0.0002329,4]
[365039883,1749420655826,-286.91534437,0.0002329,4]
[365039884,1749420655837,-286.91534437,0.0002329,4]
[365039885,1749420655847,-286.91534437,0.0002329,4]
[365039886,1749420655856,-286.91,0.0002329,4]
[365039887,1749420655866,-669.46913686,0.0002329,4]
[365039888,1749420655876,-669.46913686,0.0002329,4]
[365039889,1749420655886,-669.46913686,0.0002329,4]
[365039890,1749420655896,-669.46913686,0.0002329,4]
[365039891,1749420655906,-669.46913686,0.0002329,4]
[365039892,1749420655916,-669.46913686,0.0002329,4]
[365039893,1749420655926,-669.46913686,0.0002329,4]
[365039894,1749420655936,-669.46913686,0.0002329,4]
[365039895,1749420655946,-669.46913686,0.0002329,4]
[365039896,1749420655956,-669.46913686,0.0002329,4]
[365039897,1749420655965,-669.46913686,0.0002329,4]
[365039898,1749420655975,-669.46913686,0.0002329,4]
[365039899,1749420655985,-669.46913686,0.0002329,4]
[365039900,1749420655995,-669.46913686,0.0002329,4]
[365039901,1749420656005,-669.46913686,0.0002329,4]
[365039902,1749420656015,-669.46913686,0.0002329,4]
[365039903,1749420656025,-669.46913686,0.0002329,4]
[365039904,1749420656035,-669.46913686,0.0002329,4]
[365039905,1749420656044,-669.46913686,0.0002329,4]
[365039906,1749420656054,-669.46,0.0002329,4]
[365039907,1749420656064,-136194.04544018,0.000233,2]
[365039908,1749420656078,-3536.3359832,0.000233,2]
[365039909,1749420656088,-2768.56180208,0.000233,7]
[365039910,1749420656113,-46113.16148013,0.000233,7]
[365039911,1749420656123,-112911.14871757,0.000233,2]
[365039912,1749420656133,-44272.59843809,0.000233,2]
[365039913,1749420656142,-3000.0,0.000233,2]
[365039914,1749420656152,-151.0,0.000233,7]
[365039915,1749420656162,-151.0,0.000233,7]
[365039916,1749420656172,-151.0,0.000233,7]
[365039917,1749420656182,-151.0,0.000233,7]
[365039918,1749420656192,-151.0,0.000233,7]
[365039919,1749420656202,-151.0,0.000233,7]
[365039920,1749420656212,-151.0,0.000233,7]
[365039921,1749420656222,-151.0,0.000233,7]
[365039922,1749420656232,-151.0,0.000233,7]
[365039923,1749420656242,-195.707151,0.000233,7]
[365039924,1749420656252,-195.707151,0.000233,7]
[365039925,1749420656261,-195.707151,0.000233,7]
[365039926,1749420656272,-151.0,0.000233,7]
[365039927,1749420656282,-151.0,0.000233,7]
[365039928,1749420656292,-151.0,0.000233,7]
[365039929,1749420656301,-151.0,0.000233,7]
[365039930,1749420656311,-151.0,0.000233,7]
[365039931,1749420656321,-180.187486,0.000233,7]
[365039932,1749420656331,-151.0,0.000233,7]
[365039933,1749420656341,-151.0,0.000233,7]
[365039934,1749420656351,-151.0,0.000233,7]
[365039935,1749420656361,-151.0,0.000233,7]
[365039936,1749420656371,-265.945829,0.000233,7]
[365039937,1749420656381,-151.0,0.000233,7]
[365039938,1749420656391,-151.0,0.000233,7]
[365039939,1749420656401,-151.0,0.000233,7]
[365039940,1749420656411,-151.0,0.000233,7]
[365039941,1749420656421,-2429.661368,0.000233,2]
[365039942,1749420656432,-2429.66136676,0.000233,2]
[365039943,1749420656443,-381.183681,0.000233,7]
[365039944,1749420656454,-381.183681,0.000233,7]
[365039945,1749420656464,-381.183681,0.000233,7]
[365039946,1749420656474,-381.183681,0.000233,7]
[365039947,1749420656485,-634.864202,0.000233,7]
[365039948,1749420656495,-634.864201,0.000233,7]
[365039949,1749420656505,-151.0,0.000233,7]
[365039950,1749420656516,-502.54998049,0.000233,9]
[365039951,1749420656527,-501.51409749,0.000233,9]
[365039952,1749420656538,-3000.0,0.0002331,2]
[365039953,1749420656548,-151.0,0.0002331,7]
[365039954,1749420656557,-151.0,0.0002331,7]
[365039955,1749420656567,-737.33,0.00023315,4]
[365039956,1749420656576,-3000.0,0.0002332,2]
[365039957,1749420656586,-4000.0,0.00023322,3]
[365039958,1749420656596,-3000.0,0.0002333,2]
[365039959,1749420656608,-3000.0,0.0002334,2]
[365039960,1749420656617,-3000.0,0.0002335,2]
[365039961,1749420656627,-151.0,0.0002335,7]
[365039962,1749420656636,-3000.0,0.0002336,2]
[365039963,1749420656646,-151.0,0.0002336,7]
[365039964,1749420656656,-151.0,0.0002336,7]
[365039965,1749420656665,-151.0,0.0002336,7]
[365039966,1749420656676,-381.183681,0.0002336,7]
[365039967,1749420656685,-381.183682,0.0002336,7]
[365039968,1749420656695,-3000.0,0.0002337,2]
[365039969,1749420656705,-341.0,0.00023374,2]
[365039970,1749420656714,-1527.0,0.00023377,2]
[365039971,1749420656724,-3000.0,0.0002338,2]
[365039972,1749420656733,-3000.0,0.0002339,2]
[365039973,1749420656742,-167.30776617,0.00023397,2]
[365039974,1749420656751,-3000.0,0.000234,2]
[365039975,1749420656761,-48102.66,0.000234,2]
[365039976,1749420656770,-237.280426,0.00023408,7]
[365039977,1749420656779,-195.707151,0.00023408,7]
[365039978,1749420656789,-3000.0,0.0002341,2]
[365039979,1749420656798,-737.33,0.00023415,3]
[365039980,1749420656807,-3000.0,0.0002342,2]
[365039981,1749420656817,-177.054306,0.00023424,11]
[365039982,1749420656827,-5888.0,0.00023429,2]
[365039983,1749420656836,-3000.0,0.0002343,2]
[365039984,1749420656847,-852.94100457,0.00023439,2]
[365039985,1749420656856,-3000.0,0.0002344,2]
[365039986,1749420656865,-3000.0,0.0002345,2]
[365039987,1749420656874,-3000.0,0.0002346,2]
[365039988,1749420656884,-3000.0,0.0002347,2]
[365039989,1749420656893,-3000.0,0.0002348,2]
[365039990,1749420656903,-3000.0,0.0002349,2]
[365039991,1749420656912,-3036.94,0.000235,2]
[365039992,1749420656922,-382.66831011,0.000235,2]
[365039993,1749420656931,-3000.0,0.000235,2]
[365039994,1749420656941,-3000.0,0.0002351,2]
[365039995,1749420656951,-737.33,0.00023515,4]
[365039996,1749420656960,-3000.0,0.0002352,2]
[365039997,1749420656970,-3000.0,0.0002353,2]
[365039998,1749420656980,-151.0,0.0002353,7]
[365039999,1749420656989,-364.5816698,0.00023534,2]
[365040000,1749420656999,-872.0,0.00023536,2]
[365040001,1749420657008,-3000.0,0.0002354,2]
[365040002,1749420657018,-168.0,0.00023544,2]
[365040003,1749420657027,-200.0,0.00023546,2]
[365040004,1749420657037,-44929.33401829,0.00023547,2]
[365040005,1749420657047,-151.0,0.00023547,7]
[365040006,1749420657058,-151.0,0.00023547,7]
[365040007,1749420657068,-151.0,0.00023547,7]
[365040008,1749420657078,-3000.0,0.0002355,2]
[365040009,1749420657088,-200.0,0.0002356,2]
[365040010,1749420657098,-3000.0,0.0002356,2]
[365040011,1749420657107,-195.707151,0.00023561,7]
[365040012,1749420657117,-496.4,0.00023561,2]
[365040013,1749420657127,-440.0,0.00023561,4]
[365040014,1749420657137,-1143.64,0.00023561,4]
[365040015,1749420657147,-440.0,0.00023561,4]
[365040016,1749420657157,-1415.17,0.00023561,4]
[365040017,1749420657167,-485.45,0.00023561,4]
[365040018,1749420657176,-440.0,0.00023561,4]
[365040019,1749420657186,-2568.46,0.00023561,4]
[365040020,1749420657195,-1143.02,0.00023561,4]
[365040021,1749420657206,-440.0,0.00023561,4]
[365040022,1749420657216,-1508.21,0.00023561,4]
[365040023,1749420657226,-502.97,0.00023561,4]
[365040024,1749420657236,-1346.99,0.00023561,4]
[365040025,1749420657247,-526.86724221,0.00023561,4]
[365040026,1749420657256,-1720.85,0.00023561,4]
[365040027,1749420657266,-2696.79,0.00023561,4]
[365040028,1749420657276,-1719.84,0.00023561,4]
[365040029,1749420657378,-440.0,0.00023561,4]
[365040030,1749420657389,-440.0,0.00023561,4]
[365040031,1749420657399,-440.0,0.00023561,4]
[365040032,1749420657409,-2364.37,0.00023561,4]
[365040033,1749420657419,-562.52,0.00023561,4]
[365040034,1749420657428,-1138.16,0.00023561,4]
[365040035,1749420657441,-2603.17,0.00023561,4]
[365040036,1749420657451,-2952.52,0.00023561,4]
[365040037,1749420657460,-542.2,0.00023561,4]
[365040038,1749420657479,-769.0,0.00023561,4]
[365040039,1749420657490,-440.0,0.00023561,4]
[365040040,1749420657500,-872.0,0.00023565,2]
[365040041,1749420657510,-3000.0,0.0002357,2]
[365040042,1749420657523,-500.0,0.0002357,2]
[365040043,1749420657533,-500.0,0.0002357,2]
[365040044,1749420657543,-500.0,0.0002357,2]
[365040045,1749420657553,-3000.0,0.0002358,2]
[365040046,1749420657562,-168.0,0.0002358,2]
[365040047,1749420657572,-168.0,0.00023587,2]
[365040048,1749420657582,-3000.0,0.0002359,2]
[365040049,1749420657591,-5888.0,0.00023591,2]
[365040050,1749420657600,-3000.0,0.000236,2]
[365040051,1749420657610,-886.0,0.000236,2]
[365040052,1749420657620,-3000.0,0.0002361,2]
[365040053,1749420657630,-3600.0,0.00023612,2]
[365040054,1749420657640,-1000.0,0.00023612,2]
[365040055,1749420657649,-3000.0,0.00023612,2]
[365040056,1749420657659,-737.33,0.00023615,6]
[365040057,1749420657669,-600.0,0.00023617,2]
[365040058,1749420657679,-452.0,0.00023618,2]
[365040059,1749420657688,-3000.0,0.0002362,2]
[365040060,1749420657698,-3000.0,0.0002363,2]
[365040061,1749420657707,-452.0,0.0002364,2]
[365040062,1749420657717,-3000.0,0.0002364,2]
[365040063,1749420657727,-800.0,0.00023648,2]
[365040064,1749420657736,-3000.0,0.0002365,2]
[365040065,1749420657747,-3000.0,0.0002366,2]
[365040066,1749420657756,-168.0,0.00023666,2]
[365040067,1749420657766,-3000.0,0.0002367,2]
[365040068,1749420657775,-800.0,0.0002367,2]
[365040069,1749420657785,-452.0,0.00023679,2]
[365040070,1749420657795,-3000.0,0.0002368,2]
[365040071,1749420657804,-221.67519422,0.0002368,2]
[365040072,1749420657814,-3000.0,0.0002369,2]
[365040073,1749420657825,-168.0,0.00023691,2]
[365040074,1749420657834,-167.30776617,0.00023699,2]
[365040075,1749420657844,-159.40047307,0.00023699,2]
[365040076,1749420657854,-33101.57200802,0.00023699,2]
[365040077,1749420657864,-306590.81675646,0.000237,2]
[365040078,1749420657874,-49968.87628394,0.000237,2]
[365040079,1749420657884,-3000.0,0.000237,2]
[365040080,1749420657894,-275.42208913,0.000237,7]
[365040081,1749420657904,-195.707156,0.000237,7]
[365040082,1749420657914,-151.0,0.000237,7]
[365040083,1749420657924,-13529.12,0.000237,10]
[365040084,1749420657934,-9431.37,0.000237,10]
[365040085,1749420657943,-3894.42,0.000237,10]
[365040086,1749420657954,-3000.0,0.0002371,2]
[365040087,1749420657963,-737.33,0.00023715,4]
[365040088,1749420657974,-3000.0,0.0002372,2]
[365040089,1749420657983,-1000.0,0.00023721,2]
[365040090,1749420657993,-300.0,0.00023721,2]
[365040091,1749420658003,-3000.0,0.0002373,2]
[365040092,1749420658013,-4051.59022,0.0002374,2]
[365040093,1749420658023,-872.0,0.00023757,2]
[365040094,1749420658033,-308444.27272467,0.0002378,5]
[365040095,1749420658048,-2448.31875038,0.0002378,5]
[365040096,1749420658119,-173.79140564,0.00019078,2]
[365040097,1749420658129,-223.14975466,0.0002378,5]
[365040098,1749420658296,-440.0,0.00019178,2]
[365040099,1749420658306,-159.18,0.00019452,2]
[365040100,1749420658316,-173.79140564,0.00020429,2]
[365040101,1749420658326,-1808.69624329,0.00023165,2]
[365040102,1749420658336,-9301.49956676,0.0002378,5]
[365040125,1749420883917,187.09,0.00017076,2]
[365040126,1749420884331,374.18,0.00017889,2]
[365040128,1749420960289,179.95,0.0001742,2]
[365040129,1749421041333,177.66,0.00017552,2]
[365040130,1749421078800,674.7797,0.00024549,30]